bitfinex/quotes_BTCUSD_20241022
["timestamp","ask_amount","ask_price","bid_price","bid_amount"]
[1729558001418,0.2689,67091.0,67090.0,0.55240914]
[1729558001606,0.2689,67091.0,67090.0,0.45201215]
[1729558001607,0.2699,67091.0,67090.0,0.45201215]
[1729558001824,0.2689,67091.0,67090.0,0.43801215]
[1729558002042,0.2679,67091.0,67090.0,0.43901215]
[1729558002255,0.2679,67091.0,67090.0,0.45201215]
[1729558002481,0.2689,67091.0,67090.0,0.45201215]
[1729558002694,0.2729,67091.0,67090.0,0.43401215]
[1729558003147,0.2729,67091.0,67090.0,0.43801215]
[1729558003394,0.2729,67091.0,67090.0,0.43401215]
[1729558003607,0.2729,67091.0,67090.0,0.43801215]
[1729558003852,0.2719,67091.0,67090.0,0.42501215]
[1729558004067,0.2729,67091.0,67090.0,0.42701215]
[1729558004299,0.2729,67091.0,67090.0,0.54100914]
[1729558005158,0.2729,67091.0,67090.0,0.42701215]
[1729558006546,0.2729,67091.0,67090.0,0.43101215]
[1729558006547,0.2679,67091.0,67090.0,0.43101215]
[1729558006767,0.1878,67091.0,67090.0,0.43101215]
[1729558007216,0.1928,67091.0,67090.0,0.43101215]
[1729558007439,0.1878,67091.0,67090.0,0.43101215]
[1729558007674,0.1928,67091.0,67090.0,0.43101215]
[1729558007913,0.1878,67091.0,67090.0,0.59914237]
[1729558008121,0.1878,67091.0,67090.0,0.43101215]
[1729558008559,0.001,67091.0,67090.0,0.43101215]
[1729558008780,0.001,67091.0,67090.0,0.52009325]
[1729558008987,0.001,67091.0,67090.0,0.57171298]
[1729558009422,0.001,67091.0,67090.0,0.74482463]
[1729558009636,0.001,67091.0,67090.0,0.75482463]
[1729558009849,0.000824,67101.0,67100.0,0.278031]
[1729558010100,0.000824,67101.0,67100.0,0.5981018]
[1729558010296,0.000824,67101.0,67100.0,0.74706095]
[1729558010772,0.000824,67101.0,67100.0,0.75706095]
[1729558011178,0.000824,67101.0,67100.0,0.803435]
[1729558011671,0.026824,67101.0,67100.0,0.805435]
[1729558013846,0.026824,67101.0,67100.0,0.798435]
[1729558014057,0.026824,67101.0,67100.0,0.62732335]
[1729558014270,0.026824,67101.0,67100.0,0.40899015]
[1729558014506,0.026824,67101.0,67100.0,0.63480811]
[1729558014701,0.026824,67101.0,67100.0,0.41083558]
[1729558015146,0.026824,67101.0,67100.0,0.45720886]
[1729558015328,0.026824,67101.0,67100.0,0.60816801]
[1729558015563,0.026824,67101.0,67100.0,0.63116801]
[1729558015758,0.026824,67101.0,67100.0,0.58479473]
[1729558015967,0.026824,67101.0,67100.0,0.62916616]
[1729558016200,0.026824,67101.0,67100.0,0.48020701]
[1729558016453,0.026824,67101.0,67100.0,0.48220701]
[1729558016629,0.026824,67101.0,67100.0,0.49220701]
[1729558016832,0.026824,67101.0,67100.0,0.49020701]
[1729558017044,0.026824,67101.0,67100.0,0.43883558]
[1729558017260,0.026824,67101.0,67100.0,0.55012502]
[1729558017721,0.026824,67101.0,67100.0,0.42699015]
[1729558017934,0.026824,67101.0,67100.0,0.40399015]
[1729558018155,0.031824,67101.0,67100.0,0.40399015]
[1729558018379,0.031824,67101.0,67100.0,0.62796268]
[1729558018380,0.208324,67101.0,67100.0,0.62796268]
[1729558018591,0.026824,67101.0,67100.0,0.40399015]
[1729558018799,0.026824,67101.0,67100.0,0.66424224]
[1729558019444,0.026824,67101.0,67100.0,0.68724224]
[1729558020923,0.026824,67101.0,67100.0,0.53828309]
[1729558021625,0.026824,67101.0,67100.0,0.42699015]
[1729558021826,0.026824,67101.0,67100.0,0.51600894]
[1729558022493,0.026824,67101.0,67100.0,0.42699015]
[1729558023146,0.026824,67101.0,67100.0,0.49301023]
[1729558023152,0.031824,67101.0,67100.0,0.40399015]
[1729558023403,0.031824,67101.0,67100.0,0.39999015]
[1729558023648,0.222824,67101.0,67100.0,0.39999015]
[1729558024298,0.222824,67101.0,67100.0,0.42299015]
[1729558024524,0.298824,67101.0,67100.0,0.42299015]
[1729558024755,0.30181861,67101.0,67100.0,0.15095915]
[1729558024977,0.30181861,67101.0,67100.0,0.29999015]
[1729558025189,0.298824,67101.0,67100.0,0.29999015]
[1729558025617,0.286824,67101.0,67100.0,0.29899015]
[1729558025821,0.286824,67101.0,67100.0,0.39899015]
[1729558026038,0.286824,67101.0,67100.0,0.42399015]
[1729558026475,0.286824,67101.0,67100.0,0.42199015]
[1729558026702,0.273824,67101.0,67100.0,0.42299015]
[1729558026915,0.274824,67101.0,67100.0,0.43099015]
[1729558027371,0.274824,67101.0,67100.0,0.42299015]
[1729558027372,0.273824,67101.0,67100.0,0.42299015]
[1729558027595,0.273824,67101.0,67100.0,0.42899015]
[1729558027831,0.272824,67101.0,67100.0,0.42099015]
[1729558028291,0.273824,67101.0,67100.0,0.42099015]
[1729558028499,0.272824,67101.0,67100.0,0.42099015]
[1729558028720,0.276824,67101.0,67100.0,0.42099015]
[1729558029421,0.272824,67101.0,67100.0,0.42099015]
[1729558029843,0.273824,67101.0,67100.0,0.42299015]
[1729558030514,0.273824,67101.0,67100.0,0.27995915]
[1729558030759,0.27581861,67101.0,67100.0,0.27195915]
[1729558030971,0.42584761,67101.0,67100.0,0.27395915]
[1729558031209,0.274824,67101.0,67100.0,0.01]
[1729558031423,0.27781861,67101.0,67100.0,0.002]
[1729558031629,0.27681861,67101.0,67100.0,0.002]
[1729558031864,0.27781861,67101.0,67100.0,0.15895915]
[1729558032122,0.273824,67101.0,67100.0,0.42299015]
[1729558032827,0.273824,67101.0,67100.0,0.42099015]
[1729558032828,0.272824,67101.0,67100.0,0.42099015]
[1729558033061,0.273824,67101.0,67100.0,0.42299015]
[1729558033515,0.273824,67101.0,67100.0,0.27995915]
[1729558033758,0.273824,67101.0,67095.0,0.123]
[1729558033759,0.005,67096.0,67095.0,0.123]
[1729558033976,0.005,67096.0,67095.0,0.42100115]
[1729558034208,0.00799461,67096.0,67095.0,0.42100115]
[1729558034439,0.005,67096.0,67095.0,0.42100115]
[1729558035382,0.006,67096.0,67095.0,0.42900115]
[1729558035615,0.27929461,67096.0,67095.0,0.008]
[1729558035861,0.27929461,67096.0,67095.0,0.257042]
[1729558036330,0.27929461,67096.0,67095.0,0.11]
[1729558036331,0.28029461,67096.0,67095.0,0.11]
[1729558036554,0.27929461,67096.0,67095.0,0.102]
[1729558036763,0.27829461,67096.0,67095.0,0.249042]
[1729558036998,0.27829461,67096.0,67095.0,0.01]
[1729558036999,0.28029461,67096.0,67095.0,0.01]
[1729558037260,0.28029461,67096.0,67095.0,0.251042]
[1729558037472,0.28129461,67096.0,67095.0,0.11]
[1729558038137,0.28129461,67096.0,67095.0,0.159042]
[1729558038346,0.28129461,67096.0,67095.0,0.11]
[1729558038986,0.28129461,67096.0,67095.0,0.259042]
[1729558039200,0.28129461,67096.0,67095.0,0.11]
[1729558039411,0.28129461,67096.0,67095.0,0.159042]
[1729558039625,0.28129461,67096.0,67095.0,0.259042]
[1729558039886,0.49606054,67096.0,67095.0,0.01]
[1729558040106,0.51687362,67096.0,67095.0,0.01]
[1729558040320,0.45614769,67096.0,67095.0,0.01]
[1729558040545,0.29210769,67096.0,67095.0,0.01]
[1729558040761,0.29210769,67096.0,67095.0,0.151042]
[1729558040762,0.2931023,67096.0,67095.0,0.151042]
[1729558041002,0.2931023,67096.0,67095.0,0.149042]
[1729558041003,0.27829461,67096.0,67095.0,0.149042]
[1729558041220,0.2763,67096.0,67095.0,0.42900115]
[1729558041466,0.2753,67096.0,67095.0,0.42100115]
[1729558041943,0.2763,67096.0,67095.0,0.42900115]
[1729558042161,0.006,67096.0,67095.0,0.42900115]
[1729558042470,0.006,67096.0,67095.0,0.61822204]
[1729558042471,0.002,67096.0,67095.0,0.61822204]
[1729558042699,0.001,67096.0,67095.0,0.61622204]
[1729558043136,0.002,67096.0,67095.0,0.75194668]
[1729558043371,0.002,67096.0,67095.0,0.61822204]
[1729558043617,0.002,67096.0,67095.0,0.47143155]
[1729558043618,0.005,67096.0,67095.0,0.47143155]
[1729558043829,0.005,67096.0,67095.0,0.53644628]
[1729558044061,0.006,67096.0,67095.0,0.54244628]
[1729558044297,0.02,67096.0,67095.0,0.53644628]
[1729558044511,0.034,67096.0,67095.0,0.53744628]
[1729558044738,0.029,67096.0,67095.0,0.53744628]
[1729558044979,0.034,67096.0,67095.0,0.53744628]
[1729558045199,0.034,67096.0,67095.0,0.42600115]
[1729558045440,0.034,67096.0,67095.0,0.58613039]
[1729558045441,0.015,67096.0,67095.0,0.58613039]
[1729558045649,0.02,67096.0,67095.0,0.53845665]
[1729558046349,0.02,67096.0,67095.0,0.54525215]
[1729558046350,0.015,67096.0,67095.0,0.54525215]
[1729558046572,0.015,67096.0,67095.0,0.67683793]
[1729558047246,0.015,67096.0,67095.0,0.56538243]
[1729558047469,0.015,67096.0,67095.0,0.48024166]
[1729558048631,0.015,67096.0,67095.0,0.6159663]
[1729558048880,0.015,67096.0,67095.0,0.48224166]
[1729558049532,0.015824,67096.0,67095.0,0.48224166]
[1729558049739,0.015824,67096.0,67095.0,0.62577167]
[1729558049970,0.015824,67096.0,67095.0,0.62777167]
[1729558050231,0.015824,67096.0,67095.0,0.63277167]
[1729558051388,0.015824,67096.0,67095.0,0.80888332]
[1729558051599,0.015824,67096.0,67095.0,1.00636818]
[1729558051806,0.015824,67096.0,67095.0,1.08454896]
[1729558052034,0.015824,67096.0,67095.0,0.88708332]
[1729558052492,0.015824,67096.0,67095.0,0.80188332]
[1729558052756,0.015824,67096.0,67095.0,0.48424166]
[1729558052954,0.015824,67096.0,67095.0,0.48724166]
[1729558053188,0.012824,67096.0,67095.0,0.48624166]
[1729558053653,0.000824,67096.0,67095.0,0.68270089]
[1729558053882,0.000824,67096.0,67095.0,0.68370089]
[1729558053883,0.011824,67096.0,67095.0,0.68370089]
[1729558054127,0.012824,67096.0,67095.0,0.82963154]
[1729558054354,0.012824,67096.0,67095.0,0.82863154]
[1729558054563,0.023824,67096.0,67095.0,0.48524166]
[1729558054773,0.023824,67096.0,67095.0,0.48424166]
[1729558054983,0.034824,67096.0,67095.0,0.48524166]
[1729558055199,0.022824,67096.0,67095.0,0.48424166]
[1729558055418,0.022824,67096.0,67095.0,0.48524166]
[1729558055674,0.034824,67096.0,67095.0,0.63127231]
[1729558055905,0.034824,67096.0,67095.0,0.48524166]
[1729558056119,0.022824,67096.0,67095.0,0.68170089]
[1729558056332,0.012824,67096.0,67095.0,0.48424166]
[1729558056543,0.012824,67096.0,67095.0,0.91906004]
[1729558056765,0.023824,67096.0,67095.0,0.92206004]
[1729558057053,0.023824,67096.0,67095.0,0.92106004]
[1729558057054,0.012824,67096.0,67095.0,0.92106004]
[1729558057284,0.012824,67096.0,67095.0,0.80000081]
[1729558057506,0.023824,67096.0,67095.0,0.80000081]
[1729558057730,0.000824,67101.0,67100.0,0.288031]
[1729558057955,0.000824,67101.0,67100.0,0.80350596]
[1729558059115,0.012824,67101.0,67100.0,0.80450596]
[1729558059329,0.012824,67101.0,67100.0,0.97561761]
[1729558059541,0.012824,67101.0,67100.0,0.80450596]
[1729558059749,0.012824,67101.0,67100.0,0.80250596]
[1729558059961,0.021824,67101.0,67100.0,0.80550596]
[1729558060187,0.000824,67101.0,67100.0,0.80350596]
[1729558060415,0.000824,67101.0,67100.0,0.80150596]
[1729558060637,0.009824,67101.0,67100.0,0.79750596]
[1729558061081,0.009824,67101.0,67100.0,0.80674215]
[1729558061506,0.009824,67101.0,67100.0,0.80774215]
[1729558063123,0.009824,67101.0,67100.0,0.80550596]
[1729558063355,0.009824,67101.0,67100.0,0.81532996]
[1729558063591,0.009824,67101.0,67100.0,0.81756616]
[1729558064744,0.009824,67101.0,67100.0,0.80832996]
[1729558064960,0.009824,67101.0,67100.0,0.81332996]
[1729558065421,0.009824,67101.0,67100.0,0.77086767]
[1729558065636,0.009824,67101.0,67100.0,0.63721831]
[1729558066093,0.009824,67101.0,67100.0,0.48825916]
[1729558067597,0.009824,67101.0,67100.0,0.62190852]
[1729558068024,0.009824,67101.0,67100.0,0.62390852]
[1729558068290,0.009824,67101.0,67100.0,0.49025916]
[1729558069365,0.009824,67101.0,67100.0,0.48825916]
[1729558069594,0.009824,67101.0,67100.0,0.63721831]
[1729558070690,0.009824,67101.0,67100.0,0.77084161]
[1729558070908,0.009824,67101.0,67100.0,0.46025916]
[1729558071126,0.009824,67101.0,67100.0,0.45043516]
[1729558072286,0.009824,67101.0,67100.0,0.51535347]
[1729558072521,0.009824,67101.0,67100.0,0.5847723]
[1729558072749,0.014824,67101.0,67100.0,0.5847723]
[1729558072975,0.096324,67101.0,67100.0,0.42699015]
[1729558073207,0.096324,67101.0,67100.0,0.51208513]
[1729558073426,0.096324,67101.0,67100.0,0.51208202]
[1729558073648,0.287524,67101.0,67100.0,0.42299015]
[1729558073875,0.287524,67101.0,67100.0,0.48981446]
[1729558074102,0.287524,67101.0,67100.0,0.42299015]
[1729558074335,0.278524,67101.0,67100.0,0.48781446]
[1729558074563,0.278524,67101.0,67100.0,0.50181446]
[1729558074827,0.279524,67101.0,67100.0,0.50881613]
[1729558075058,0.279524,67101.0,67100.0,0.42099015]
[1729558075301,0.280524,67101.0,67100.0,0.5839493]
[1729558075538,0.280524,67101.0,67100.0,0.57056232]
[1729558075539,0.278524,67101.0,67100.0,0.57056232]
[1729558075956,0.278524,67101.0,67100.0,0.59283529]
[1729558076161,0.278524,67101.0,67100.0,0.59683529]
[1729558076710,0.278524,67101.0,67100.0,0.58283529]
[1729558077149,0.279524,67101.0,67100.0,0.58383529]
[1729558077598,0.279524,67101.0,67100.0,0.58283529]
[1729558077794,0.292524,67101.0,67100.0,0.58283529]
[1729558078087,0.287524,67101.0,67100.0,0.73179444]
[1729558078293,0.301524,67101.0,67100.0,0.7318145]
[1729558078641,0.306524,67101.0,67100.0,0.7318145]
[1729558079224,0.306524,67101.0,67100.0,0.58285535]
[1729558079928,0.306524,67101.0,67100.0,0.47147045]
[1729558080498,0.306524,67101.0,67100.0,0.58287644]
[1729558080899,0.306524,67101.0,67100.0,0.47147045]
[1729558081335,0.306524,67101.0,67100.0,0.58288408]
[1729558081528,0.306524,67101.0,67100.0,0.47147045]
[1729558081743,0.028824,67101.0,67100.0,0.6204296]
[1729558081948,0.028824,67101.0,67100.0,0.6254296]
[1729558082974,1e-06,67101.0,67100.0,0.79854125]
[1729558083450,1e-06,67101.0,67100.0,0.80354125]
[1729558083731,0.0783,67114.0,67113.0,0.276002]
[1729558083985,0.0783,67114.0,67113.0,0.6777951]
[1729558084215,0.005,67117.0,67113.0,0.6777951]
[1729558084216,0.005,67117.0,67116.0,0.248995]
[1729558084453,0.005,67117.0,67116.0,0.538308]
[1729558084699,0.005,67117.0,67116.0,0.42495415]
[1729558084918,0.005,67117.0,67116.0,0.53835255]
[1729558085122,0.005,67117.0,67116.0,0.59811806]
[1729558085342,0.005,67132.0,67116.0,0.59811806]
[1729558085343,0.005,67123.0,67122.0,0.152982]
[1729558085563,0.0825,67124.0,67123.0,0.27598]
[1729558085774,0.0825,67124.0,67123.0,0.64257565]
[1729558085984,0.0825,67124.0,67123.0,0.7915348]
[1729558087253,0.005,67126.0,67124.0,0.152978]
[1729558087590,0.005,67126.0,67124.0,0.471462]
[1729558087998,0.00169,67137.0,67124.0,0.471462]
[1729558087999,0.00169,67137.0,67136.0,0.252951]
[1729558088215,0.000844,67140.0,67139.0,0.275944]
[1729558088446,0.000844,67140.0,67139.0,0.5960148]
[1729558088872,0.000844,67140.0,67139.0,0.42490315]
[1729558089330,0.000844,67140.0,67139.0,0.43890315]
[1729558089563,0.000844,67140.0,67139.0,0.6100148]
[1729558089786,0.000844,67140.0,67139.0,0.67231601]
[1729558090222,0.000844,67140.0,67139.0,0.68631601]
[1729558090451,0.000844,67140.0,67139.0,0.79980186]
[1729558090665,0.000844,67140.0,67139.0,0.68631601]
[1729558091512,0.000844,67140.0,67139.0,0.77533007]
[1729558091962,0.000844,67140.0,67139.0,0.7530768]
[1729558092176,0.000844,67140.0,67139.0,0.69299768]
[1729558092407,0.000844,67140.0,67139.0,1.14442641]
[1729558092636,0.000844,67140.0,67139.0,0.92245388]
[1729558093092,0.000844,67140.0,67139.0,0.89445388]
[1729558093315,0.022645,67161.0,67155.0,0.275909]
[1729558093539,0.017645,67161.0,67155.0,0.51582813]
[1729558094044,0.017645,67161.0,67155.0,0.42486815]
[1729558094256,0.022645,67161.0,67155.0,0.49153076]
[1729558094472,0.022645,67161.0,67155.0,0.64884068]
[1729558094473,0.017645,67161.0,67155.0,0.64884068]
[1729558094686,0.017645,67161.0,67155.0,0.50974046]
[1729558094899,0.017645,67161.0,67155.0,0.45189068]
[1729558095163,0.017645,67161.0,67155.0,0.52850629]
[1729558095567,0.017645,67161.0,67155.0,0.52846131]
[1729558095785,0.017645,67161.0,67155.0,0.53789068]
[1729558096003,0.017645,67161.0,67155.0,0.62785066]
[1729558096432,0.017645,67161.0,67155.0,0.58507259]
[1729558096652,0.017645,67161.0,67155.0,0.61881804]
[1729558096895,0.017645,67161.0,67155.0,0.58507259]
[1729558097546,0.017645,67161.0,67155.0,0.86696367]
[1729558097761,0.017645,67161.0,67155.0,0.89970912]
[1729558097972,0.017645,67161.0,67155.0,0.58400353]
[1729558098180,0.017645,67161.0,67155.0,0.51000353]
[1729558098390,0.017645,67161.0,67155.0,0.58425524]
[1729558098613,0.017645,67161.0,67155.0,0.52832276]
[1729558098831,0.017645,67161.0,67155.0,0.48406606]
[1729558099063,0.017645,67161.0,67155.0,0.46192336]
[1729558099315,0.017645,67161.0,67155.0,0.41663398]
[1729558099548,0.017645,67161.0,67155.0,0.41763398]
[1729558100169,0.017645,67161.0,67155.0,0.44063398]
[1729558100399,0.017645,67161.0,67155.0,0.54316299]
[1729558100628,0.017645,67161.0,67155.0,0.54816299]
[1729558101738,0.017645,67161.0,67155.0,0.54616299]
[1729558101985,0.017645,67161.0,67155.0,0.54816299]
[1729558105337,0.017645,67161.0,67160.0,0.287898]
[1729558105566,0.017645,67161.0,67160.0,0.77908045]
[1729558106477,0.017645,67161.0,67160.0,0.78008045]
[1729558107200,0.01287244,67161.0,67160.0,0.79772545]
[1729558107634,0.02287244,67161.0,67160.0,0.79872545]
[1729558107838,0.02287244,67161.0,67160.0,0.86102666]
[1729558108042,0.000844,67162.0,67161.0,0.016]
[1729558108259,0.000844,67162.0,67161.0,0.43685415]
[1729558109111,0.014844,67162.0,67161.0,0.43685415]
[1729558109974,0.014844,67162.0,67161.0,0.43485415]
[1729558110407,0.014844,67162.0,67161.0,0.4588708]
[1729558110622,0.015844,67162.0,67161.0,0.4598708]
[1729558111510,0.015844,67162.0,67161.0,0.42585415]
[1729558111744,0.098344,67162.0,67161.0,0.40285415]
[1729558111962,0.098344,67162.0,67161.0,0.40785415]
[1729558113008,0.098344,67162.0,67161.0,0.42585415]
[1729558113223,0.093344,67162.0,67161.0,0.42585415]
[1729558113458,0.093344,67162.0,67161.0,0.55041576]
[1729558117866,0.010844,67162.0,67161.0,0.55041576]
[1729558118073,0.010844,67162.0,67161.0,0.59660906]
[1729558119383,0.010844,67162.0,67161.0,0.59825906]
[1729558119605,0.011669,67162.0,67161.0,0.59825906]
[1729558120077,0.001825,67162.0,67161.0,0.59825906]
[1729558120283,0.009825,67162.0,67161.0,0.59925906]
[1729558120487,0.008825,67162.0,67161.0,0.59825906]
[1729558120692,0.001825,67162.0,67161.0,0.47369745]
[1729558121327,0.009825,67162.0,67161.0,0.47469745]
[1729558123529,0.005,67181.0,67180.0,0.152853]
[1729558123779,0.006723,67196.0,67187.0,0.004]
[1729558124020,0.005,67196.0,67192.0,0.44693865]
[1729558124246,0.005,67196.0,67192.0,0.49313195]
[1729558124463,0.005,67196.0,67192.0,0.60197965]
[1729558125137,0.005,67196.0,67192.0,0.6420911]
[1729558125345,0.088,67198.0,67192.0,0.6420911]
[1729558125563,0.083,67198.0,67192.0,0.6470911]
[1729558126528,0.199,67199.0,67192.0,0.6610911]
[1729558127397,0.199,67199.0,67192.0,0.6750911]
[1729558127601,0.083,67204.0,67192.0,0.72634696]
[1729558127828,0.083,67204.0,67192.0,0.88343404]
[1729558128033,0.083,67204.0,67192.0,0.88811383]
[1729558128234,0.083,67204.0,67192.0,0.90211383]
[1729558128453,0.083,67204.0,67192.0,0.92424176]
[1729558128666,0.083,67204.0,67192.0,0.83573004]
[1729558128881,0.083,67204.0,67192.0,0.92430024]
[1729558129095,0.083,67204.0,67192.0,0.94632779]
[1729558129304,0.083,67204.0,67192.0,0.83573004]
[1729558129509,0.083,67204.0,67192.0,0.93232779]
[1729558129931,0.198344,67193.0,67192.0,0.57525699]
[1729558130148,0.280344,67193.0,67192.0,0.45797945]
[1729558130390,0.280344,67193.0,67192.0,0.35797945]
[1729558130801,0.00299461,67198.0,67192.0,0.22315245]
[1729558131069,0.1925,67209.0,67208.0,0.009]
[1729558131291,0.11529719,67209.0,67208.0,0.30674915]
[1729558131533,0.11529719,67209.0,67208.0,0.39774915]
[1729558131534,0.07569719,67209.0,67208.0,0.39774915]
[1729558131770,0.15769719,67209.0,67208.0,0.39774915]
[1729558131987,0.15769719,67209.0,67208.0,0.44403114]
[1729558132206,0.15769719,67209.0,67208.0,0.46703114]
[1729558132683,0.15769719,67209.0,67208.0,0.42075015]
[1729558132925,0.15769719,67209.0,67208.0,0.24895915]
[1729558133139,0.15769719,67209.0,67208.0,0.26495915]
[1729558133370,0.15769719,67209.0,67208.0,0.25095915]
[1729558133579,0.15769719,67209.0,67208.0,0.24895915]
[1729558134021,0.15769719,67209.0,67208.0,0.26295915]
[1729558134252,0.16269719,67209.0,67208.0,0.028]
[1729558134455,0.16269719,67209.0,67199.0,0.14881]
[1729558134456,0.0787,67203.0,67199.0,0.14881]
[1729558134660,0.0787,67203.0,67202.0,0.8929568]
[1729558134863,0.0787,67203.0,67200.0,0.14895915]
[1729558135312,0.0727,67203.0,67202.0,0.148805]
[1729558135539,0.0727,67203.0,67202.0,0.29776415]
[1729558135754,0.0727,67203.0,67202.0,0.42076415]
[1729558135959,0.0727,67203.0,67202.0,0.248805]
[1729558136401,0.0727,67203.0,67202.0,0.39776415]
[1729558136876,0.17111165,67205.0,67202.0,0.39776415]
[1729558136877,0.19,67251.0,67227.0,0.148749]
[1729558137107,0.005,67243.0,67227.0,0.2676239]
[1729558137996,0.17111165,67244.0,67227.0,0.2906239]
[1729558138215,0.17111165,67244.0,67227.0,0.43958305]
[1729558138448,0.0803,67240.0,67227.0,0.43958305]
[1729558139485,0.0803,67240.0,67227.0,0.45358305]
[1729558139697,0.0803,67240.0,67227.0,0.46758305]
[1729558139915,0.0803,67240.0,67227.0,0.47458305]
[1729558140131,0.0803,67240.0,67227.0,0.46758305]
[1729558140784,0.0803,67240.0,67227.0,0.45358305]
[1729558141012,0.0803,67240.0,67227.0,0.49082524]
[1729558141236,0.0803,67240.0,67227.0,0.49182524]
[1729558141441,0.019645,67228.0,67227.0,0.49282524]
[1729558141666,0.019645,67228.0,67227.0,0.47295034]
[1729558141882,0.019645,67228.0,67227.0,0.42670815]
[1729558143804,0.02047,67228.0,67227.0,0.42670815]
[1729558144832,0.02047,67228.0,67227.0,0.43170815]
[1729558145020,0.02047,67228.0,67227.0,0.44170815]
[1729558145282,0.02047,67228.0,67227.0,0.58500393]
[1729558145486,0.02047,67228.0,67227.0,0.58700393]
[1729558145926,0.02047,67228.0,67227.0,0.6523262]
[1729558146149,0.01847,67228.0,67227.0,0.67343363]
[1729558146373,0.01847,67228.0,67227.0,0.65227647]
[1729558146594,0.01847,67228.0,67227.0,0.65327647]
[1729558146810,0.01847,67228.0,67227.0,0.65127647]
[1729558147022,0.01847,67228.0,67227.0,0.65227647]
[1729558147255,0.01847,67228.0,67227.0,0.62815695]
[1729558147478,0.01847,67228.0,67227.0,0.48386117]
[1729558147687,0.01847,67228.0,67227.0,0.43970815]
[1729558147909,0.01847,67228.0,67227.0,0.44070815]
[1729558149259,0.01847,67228.0,67227.0,0.49923815]
[1729558149470,0.01847,67228.0,67227.0,0.50023815]
[1729558149679,0.01847,67228.0,67227.0,0.63148724]
[1729558149900,0.01847,67228.0,67227.0,0.63048724]
[1729558150352,0.01847,67228.0,67227.0,0.63148724]
[1729558150555,0.01847,67228.0,67227.0,0.63348724]
[1729558150761,0.01847,67228.0,67227.0,0.63248724]
[1729558150966,0.01847,67228.0,67227.0,0.63348724]
[1729558151642,0.01847,67228.0,67227.0,0.63148724]
[1729558151890,0.01847,67228.0,67227.0,0.62648724]
[1729558152524,0.01847,67228.0,67227.0,0.63048724]
[1729558153191,0.01847,67228.0,67227.0,0.63371894]
[1729558153628,0.01847,67228.0,67227.0,0.63271894]
[1729558153834,0.01847,67228.0,67227.0,0.63048724]
[1729558154055,0.01847,67228.0,67227.0,0.63148724]
[1729558154284,0.01847,67228.0,67227.0,0.63348724]
[1729558155468,0.2722,67251.0,67250.0,0.148698]
[1729558155665,0.2722,67251.0,67250.0,0.5957688]
[1729558156563,0.2722,67251.0,67250.0,0.6097688]
[1729558156791,0.0813,67271.0,67260.0,0.275676]
[1729558156999,0.0813,67271.0,67260.0,0.5957468]
[1729558157213,0.0813,67271.0,67260.0,0.64020697]
[1729558157643,0.0813,67271.0,67260.0,0.68456726]
[1729558158090,0.0813,67271.0,67260.0,0.85567891]
[1729558158325,0.0813,67271.0,67260.0,0.81631862]
[1729558158544,0.0813,67271.0,67260.0,0.86067891]
[1729558159211,0.0813,67271.0,67260.0,0.90673328]
[1729558159435,0.067143,67271.0,67270.0,0.44676565]
[1729558159661,0.067143,67271.0,67270.0,0.64008509]
[1729558160375,0.1948,67273.0,67271.0,0.104]
[1729558160625,0.1953,67283.0,67276.0,0.148641]
[1729558160848,0.1903,67283.0,67276.0,0.42460015]
[1729558161060,0.1903,67283.0,67276.0,0.55231507]
[1729558162384,0.0763,67291.0,67276.0,0.55231507]
[1729558162612,0.0763,67291.0,67276.0,0.6122615]
[1729558162819,0.0763,67291.0,67276.0,0.58531507]
[1729558162820,0.001843,67277.0,67276.0,0.58531507]
[1729558164004,9e-05,67307.0,67306.0,0.248575]
[1729558164255,9e-05,67307.0,67306.0,0.42953415]
[1729558164494,9e-05,67307.0,67306.0,0.42453415]
[1729558164740,0.25796905,67321.0,67320.0,0.171544]
[1729558164952,0.25796905,67321.0,67320.0,0.32050315]
[1729558165190,0.25796905,67325.0,67324.0,0.148535]
[1729558165399,0.005,67327.0,67324.0,0.14895915]
[1729558165666,0.005,67327.0,67326.0,0.171531]
[1729558165879,0.005,67327.0,67326.0,0.17195915]
[1729558166101,0.33441105,67329.0,67327.0,0.023]
[1729558166337,0.33441105,67329.0,67328.0,0.54360813]
[1729558166575,0.33441105,67329.0,67328.0,0.17195915]
[1729558167675,0.33441105,67329.0,67328.0,0.14895915]
[1729558167676,0.48293505,67329.0,67328.0,0.14895915]
[1729558168323,0.153526,67328.0,67327.0,0.014]
[1729558168552,0.148536,67324.0,67317.0,0.148549]
[1729558168772,0.14853,67327.0,67323.0,0.22312298]
[1729558169002,0.25796905,67322.0,67319.0,0.1]
[1729558169268,0.56005205,67322.0,67315.0,0.22312298]
[1729558169490,0.14855,67317.0,67316.0,0.14895915]
[1729558169703,0.40651705,67318.0,67316.0,0.14895915]
[1729558170152,0.25796905,67318.0,67317.0,0.14895915]
[1729558170369,0.40651705,67318.0,67317.0,0.14895915]
[1729558170590,0.25796905,67318.0,67317.0,0.40250915]
[1729558170869,0.25796905,67318.0,67317.0,0.39750915]
[1729558171296,0.199,67321.0,67320.0,0.1]
[1729558171530,0.199,67321.0,67320.0,0.27195915]
[1729558171750,0.199,67321.0,67320.0,0.24895915]
[1729558171973,0.199,67321.0,67320.0,0.42050315]
[1729558172183,0.041442,67329.0,67320.0,0.27195915]
[1729558172394,0.041442,67329.0,67328.0,0.148526]
[1729558172600,0.041442,67329.0,67328.0,0.14895915]
[1729558172808,0.041442,67329.0,67328.0,0.29748515]
[1729558173245,0.039442,67329.0,67328.0,0.14895915]
[1729558173450,0.039442,67329.0,67328.0,0.29748515]
[1729558173665,0.040442,67329.0,67328.0,0.15895915]
[1729558173873,0.040442,67329.0,67328.0,0.30748515]
[1729558174077,0.040442,67329.0,67328.0,0.33048515]
[1729558174485,0.040442,67329.0,67328.0,0.42294656]
[1729558174701,0.1816,67331.0,67330.0,4.70158895]
[1729558174939,0.25796905,67331.0,67330.0,4.8735481]
[1729558175161,0.25796905,67338.0,67337.0,0.171506]
[1729558175383,0.25796905,67338.0,67337.0,0.32046515]
[1729558175596,0.25796905,67338.0,67337.0,0.14895915]
[1729558175811,0.40647305,67338.0,67337.0,0.14895915]